[Event "Titled Tuesday Blitz June 21 Late 2022"]
[White "De La Colina, Nicolas"]
[Black "Volkov, Maksim"]
[WhiteFideId "30946921"]
[BlackFideId "54123070"]
[WhiteElo "2046"]
[BlackElo "2155"]
[Result "1-0"]
[Round "03"]
[TimeControl "180+1"]
[Date "2022.06.22"]
[WhiteClock "0:00:12"]
[BlackClock "0:00:21"]

1. e4 {[%clk 0:03:00]}  c5 {[%clk 0:02:58]} 2. c3 {[%clk 0:02:58]}  e6 {[%clk 0:02:55]} 3. Nf3 {[%clk 0:02:57]}  d5 {[%clk 0:02:55]} 4. exd5 {[%clk 0:02:58]}  exd5 {[%clk 0:02:55]} 5. d4 {[%clk 0:02:58]}  Nc6 {[%clk 0:02:54]} 6. Bb5 {[%clk 0:02:57]}  Bd6 {[%clk 0:02:53]} 7. O-O {[%clk 0:02:57]}  Ne7 {[%clk 0:02:53]} 8. dxc5 {[%clk 0:02:56]}  Bxc5 {[%clk 0:02:53]} 9. Nbd2 {[%clk 0:02:57]}  O-O {[%clk 0:02:53]} 10. Nb3 {[%clk 0:02:57]}  Bb6 {[%clk 0:02:53]} 11. Re1 {[%clk 0:02:53]}  Bg4 {[%clk 0:02:51]} 12. Be3 {[%clk 0:02:48]}  a6 {[%clk 0:02:46]} 13. Bxb6 {[%clk 0:02:39]}  Qxb6 {[%clk 0:02:47]} 14. Be2 {[%clk 0:02:39]}  Rfe8 {[%clk 0:02:45]} 15. Nfd4 {[%clk 0:02:34]}  Bxe2 {[%clk 0:02:38]} 16. Rxe2 {[%clk 0:02:35]}  Ng6 {[%clk 0:02:36]} 17. Qd2 {[%clk 0:02:18]}  Qc7 {[%clk 0:02:15]} 18. Rae1 {[%clk 0:02:11]}  Rxe2 {[%clk 0:02:14]} 19. Qxe2 {[%clk 0:02:07]}  h6 {[%clk 0:02:08]} 20. h3 {[%clk 0:02:01]}  Nce5 {[%clk 0:02:03]} 21. Nf5 {[%clk 0:01:28]}  Re8 {[%clk 0:01:58]} 22. Qd1 {[%clk 0:01:28]}  Qd7 {[%clk 0:01:54]} 23. Nbd4 {[%clk 0:01:18]}  b5 {[%clk 0:01:38]} 24. Ng3 {[%clk 0:01:15]}  Nc4 {[%clk 0:01:34]} 25. b3 {[%clk 0:00:52]}  Nb6 {[%clk 0:01:28]} 26. Ndf5 {[%clk 0:00:48]}  Re6 {[%clk 0:01:07]} 27. Re3 {[%clk 0:00:36]}  Qc7 {[%clk 0:00:57]} 28. Qd4 {[%clk 0:00:32]}  Rf6 {[%clk 0:00:42]} 29. Nxh6+ {[%clk 0:00:30]}  Kh7 {[%clk 0:00:41]} 30. Ng4 {[%clk 0:00:29]}  Re6 {[%clk 0:00:36]} 31. Nf5 {[%clk 0:00:23]}  Ne5 {[%clk 0:00:30]} 32. Rxe5 {[%clk 0:00:18]}  Rg6 {[%clk 0:00:27]} 33. Nge3 {[%clk 0:00:18]}  Nc8 {[%clk 0:00:25]} 34. Qh4+ {[%clk 0:00:17]}  Rh6 {[%clk 0:00:23]} 35. Nxh6 {[%clk 0:00:16]}  gxh6 {[%clk 0:00:22]} 36. Rh5 {[%clk 0:00:14]}  Qd6 {[%clk 0:00:21]} 37. Ng4 {[%clk 0:00:12]} 1-0


[Site "https://www.chess.com"]

[Event "Titled Tuesday Blitz June 21 Late 2022"]
[White "Di Nicolantonio, Lucas"]
[Black "Indjic, Aleksandar"]
[WhiteFideId "680460"]
[BlackFideId "911925"]
[WhiteElo "2381"]
[BlackElo "2616"]
[Result "0-1"]
[Round "03"]
[TimeControl "180+1"]
[Date "2022.06.22"]
[WhiteClock "0:00:04"]
[BlackClock "0:00:26"]

1. c4 {[%clk 0:03:00]}  g6 {[%clk 0:02:58]} 2. Nc3 {[%clk 0:02:57]}  Bg7 {[%clk 0:02:58]} 3. d4 {[%clk 0:02:56]}  d6 {[%clk 0:02:59]} 4. e4 {[%clk 0:02:55]}  c5 {[%clk 0:02:59]} 5. Nf3 {[%clk 0:02:53]}  Bg4 {[%clk 0:02:58]} 6. d5 {[%clk 0:02:47]}  Nf6 {[%clk 0:02:52]} 7. Be2 {[%clk 0:02:47]}  O-O {[%clk 0:02:50]} 8. O-O {[%clk 0:02:47]}  e6 {[%clk 0:02:50]} 9. h3 {[%clk 0:02:26]}  Bxf3 {[%clk 0:02:50]} 10. Bxf3 {[%clk 0:02:27]}  exd5 {[%clk 0:02:50]} 11. exd5 {[%clk 0:02:24]}  Nbd7 {[%clk 0:02:49]} 12. Bf4 {[%clk 0:02:23]}  Ne5 {[%clk 0:02:47]} 13. Bxe5 {[%clk 0:02:21]}  dxe5 {[%clk 0:02:48]} 14. Qc2 {[%clk 0:02:15]}  Ne8 {[%clk 0:02:43]} 15. a3 {[%clk 0:02:00]}  Rc8 {[%clk 0:02:40]} 16. Qa4 {[%clk 0:01:55]}  a6 {[%clk 0:02:36]} 17. Be2 {[%clk 0:01:45]}  Nd6 {[%clk 0:02:33]} 18. Rac1 {[%clk 0:01:44]}  e4 {[%clk 0:02:32]} 19. b4 {[%clk 0:01:37]}  Bd4 {[%clk 0:02:00]} 20. Qb3 {[%clk 0:01:25]}  b6 {[%clk 0:01:56]} 21. Na4 {[%clk 0:01:23]}  h5 {[%clk 0:01:52]} 22. bxc5 {[%clk 0:01:21]}  bxc5 {[%clk 0:01:53]} 23. Qb6 {[%clk 0:01:21]}  Qe7 {[%clk 0:01:48]} 24. Rfd1 {[%clk 0:01:14]}  Rb8 {[%clk 0:01:47]} 25. Qa5 {[%clk 0:01:11]}  Qf6 {[%clk 0:01:45]} 26. Rxd4 {[%clk 0:01:08]}  cxd4 {[%clk 0:01:45]} 27. c5 {[%clk 0:01:05]}  d3 {[%clk 0:01:41]} 28. Bf1 {[%clk 0:00:59]}  Nf5 {[%clk 0:01:42]} 29. Qc3 {[%clk 0:00:41]}  Qg5 {[%clk 0:01:22]} 30. Re1 {[%clk 0:00:36]}  Rfd8 {[%clk 0:01:12]} 31. Nb6 {[%clk 0:00:35]}  Nd6 {[%clk 0:00:53]} 32. Qd4 {[%clk 0:00:19]}  Nb5 {[%clk 0:00:42]} 33. Qxe4 {[%clk 0:00:19]}  d2 {[%clk 0:00:42]} 34. Ra1 {[%clk 0:00:15]}  Nc3 {[%clk 0:00:41]} 35. Qc2 {[%clk 0:00:13]}  d1=Q {[%clk 0:00:40]} 36. Rxd1 {[%clk 0:00:13]}  Nxd1 {[%clk 0:00:40]} 37. Qxd1 {[%clk 0:00:14]}  Qe5 {[%clk 0:00:33]} 38. a4 {[%clk 0:00:08]}  a5 {[%clk 0:00:31]} 39. Qd2 {[%clk 0:00:07]}  Rxb6 {[%clk 0:00:30]} 40. cxb6 {[%clk 0:00:07]}  Rxd5 {[%clk 0:00:28]} 41. Qc2 {[%clk 0:00:07]}  Rd8 {[%clk 0:00:28]} 42. Bb5 {[%clk 0:00:05]}  Qe1+ {[%clk 0:00:25]} 43. Kh2 {[%clk 0:00:05]}  Qe5+ {[%clk 0:00:26]} 44. Kg1 {[%clk 0:00:05]}  Qb8 {[%clk 0:00:26]} 45. Qc6 {[%clk 0:00:04]}  Rc8 {[%clk 0:00:26]} 0-1


[Site "https://www.chess.com"]

[Event "Titled Tuesday Blitz June 21 Late 2022"]
[White "Fiol, Fabrice"]
[Black "Bernat, David"]
[WhiteFideId "611670"]
[BlackFideId "2099225"]
[WhiteElo "2468"]
[BlackElo "2296"]
[Result "1-0"]
[Round "03"]
[TimeControl "180+1"]
[Date "2022.06.22"]
[WhiteClock "0:00:37"]
[BlackClock "0:00:21"]

1. e4 {[%clk 0:02:58]}  c5 {[%clk 0:03:00]} 2. Nf3 {[%clk 0:02:58]}  g6 {[%clk 0:03:00]} 3. c3 {[%clk 0:02:58]}  Bg7 {[%clk 0:02:59]} 4. d4 {[%clk 0:02:59]}  cxd4 {[%clk 0:02:59]} 5. cxd4 {[%clk 0:02:59]}  d5 {[%clk 0:03:00]} 6. e5 {[%clk 0:02:58]}  a6 {[%clk 0:03:01]} 7. Nc3 {[%clk 0:02:57]}  Bg4 {[%clk 0:03:01]} 8. h3 {[%clk 0:02:55]}  Bxf3 {[%clk 0:03:00]} 9. Qxf3 {[%clk 0:02:56]}  Nc6 {[%clk 0:03:00]} 10. Be3 {[%clk 0:02:55]}  e6 {[%clk 0:03:00]} 11. b3 {[%clk 0:02:49]}  Qa5 {[%clk 0:02:53]} 12. Rc1 {[%clk 0:02:49]}  Rc8 {[%clk 0:02:52]} 13. Be2 {[%clk 0:02:41]}  Nxe5 {[%clk 0:02:22]} 14. dxe5 {[%clk 0:02:37]}  Rxc3 {[%clk 0:02:23]} 15. O-O {[%clk 0:02:35]}  Rxc1 {[%clk 0:01:59]} 16. Rxc1 {[%clk 0:02:34]}  Ne7 {[%clk 0:01:59]} 17. Bg5 {[%clk 0:02:11]}  Bxe5 {[%clk 0:01:53]} 18. Bf6 {[%clk 0:02:06]}  Bxf6 {[%clk 0:01:28]} 19. Qxf6 {[%clk 0:02:07]}  Rg8 {[%clk 0:01:28]} 20. Bg4 {[%clk 0:02:07]}  Qd8 {[%clk 0:01:12]} 21. Qh4 {[%clk 0:01:06]}  h5 {[%clk 0:01:06]} 22. Bf3 {[%clk 0:01:06]}  Nc6 {[%clk 0:00:59]} 23. Qa4 {[%clk 0:01:00]}  Qd7 {[%clk 0:00:49]} 24. Qf4 {[%clk 0:00:50]}  Kf8 {[%clk 0:00:43]} 25. Qh6+ {[%clk 0:00:49]}  Ke7 {[%clk 0:00:37]} 26. Re1 {[%clk 0:00:46]}  Nd4 {[%clk 0:00:29]} 27. Bd1 {[%clk 0:00:44]}  Nf5 {[%clk 0:00:27]} 28. Qg5+ {[%clk 0:00:44]}  f6 {[%clk 0:00:23]} 29. Qd2 {[%clk 0:00:44]}  e5 {[%clk 0:00:21]} 30. Bf3 {[%clk 0:00:38]}  Nd4 {[%clk 0:00:20]} 31. Qxd4 {[%clk 0:00:38]}  Kf7 {[%clk 0:00:21]} 32. Qxd5+ {[%clk 0:00:37]} 1-0


[Site "https://www.chess.com"]

[Event "Titled Tuesday Blitz June 21 Late 2022"]
[White "Fiorito, Fabian"]
[Black "Shimanov, Aleksandr"]
[WhiteFideId "100200"]
[BlackFideId "4198603"]
[WhiteElo "2395"]
[BlackElo "2605"]
[Result "0-1"]
[Round "03"]
[TimeControl "180+1"]
[Date "2022.06.21"]
[WhiteClock "0:00:06"]
[BlackClock "0:00:05"]

1. d4 {[%clk 0:03:00]}  Nf6 {[%clk 0:02:54]} 2. Nc3 {[%clk 0:03:00]}  d5 {[%clk 0:02:53]} 3. Bf4 {[%clk 0:03:01]}  a6 {[%clk 0:02:53]} 4. e3 {[%clk 0:03:01]}  Bf5 {[%clk 0:02:49]} 5. Bd3 {[%clk 0:03:01]}  Bg6 {[%clk 0:02:47]} 6. h4 {[%clk 0:03:01]}  e5 {[%clk 0:02:36]} 7. dxe5 {[%clk 0:02:57]}  Nh5 {[%clk 0:02:34]} 8. Bg5 {[%clk 0:02:53]}  f6 {[%clk 0:02:33]} 9. exf6 {[%clk 0:02:53]}  gxf6 {[%clk 0:02:33]} 10. g4 {[%clk 0:02:32]}  fxg5 {[%clk 0:02:32]} 11. gxh5 {[%clk 0:02:32]}  Bf7 {[%clk 0:02:32]} 12. hxg5 {[%clk 0:02:29]}  Qxg5 {[%clk 0:02:33]} 13. Nf3 {[%clk 0:02:28]}  Qf6 {[%clk 0:02:33]} 14. Qe2 {[%clk 0:02:24]}  Ba3 {[%clk 0:02:28]} 15. Nd1 {[%clk 0:01:59]}  Be7 {[%clk 0:02:22]} 16. e4 {[%clk 0:01:38]}  dxe4 {[%clk 0:02:18]} 17. Bxe4 {[%clk 0:01:39]}  Nc6 {[%clk 0:02:18]} 18. Nc3 {[%clk 0:01:36]}  O-O-O {[%clk 0:02:12]} 19. Nd2 {[%clk 0:01:17]}  Nd4 {[%clk 0:02:10]} 20. Qe3 {[%clk 0:01:15]}  Bc5 {[%clk 0:02:08]} 21. Qh3+ {[%clk 0:01:04]}  Be6 {[%clk 0:02:07]} 22. Qh4 {[%clk 0:01:04]}  Qh6 {[%clk 0:01:21]} 23. O-O-O {[%clk 0:00:50]}  Rhe8 {[%clk 0:01:21]} 24. Rhe1 {[%clk 0:00:47]}  Be7 {[%clk 0:01:16]} 25. Qh1 {[%clk 0:00:46]}  c6 {[%clk 0:01:13]} 26. Kb1 {[%clk 0:00:45]}  Bb4 {[%clk 0:01:11]} 27. Nb3 {[%clk 0:00:33]}  Bxc3 {[%clk 0:01:09]} 28. bxc3 {[%clk 0:00:34]}  Nb5 {[%clk 0:01:10]} 29. Qf3 {[%clk 0:00:23]}  Rxd1+ {[%clk 0:01:06]} 30. Rxd1 {[%clk 0:00:23]}  Bxb3 {[%clk 0:01:02]} 31. axb3 {[%clk 0:00:22]}  Rxe4 {[%clk 0:00:55]} 32. c4 {[%clk 0:00:14]}  Na3+ {[%clk 0:00:24]} 33. Ka2 {[%clk 0:00:14]}  Rf4 {[%clk 0:00:24]} 34. Qh3+ {[%clk 0:00:14]}  Kb8 {[%clk 0:00:25]} 35. Kxa3 {[%clk 0:00:14]}  Qf8+ {[%clk 0:00:23]} 36. Kb2 {[%clk 0:00:14]}  Qf6+ {[%clk 0:00:22]} 37. Qc3 {[%clk 0:00:13]}  Rxf2 {[%clk 0:00:20]} 38. Qxf6 {[%clk 0:00:13]}  Rxf6 {[%clk 0:00:21]} 39. Rd8+ {[%clk 0:00:13]}  Kc7 {[%clk 0:00:21]} 40. Rd4 {[%clk 0:00:11]}  Rf5 {[%clk 0:00:20]} 41. Rh4 {[%clk 0:00:10]}  h6 {[%clk 0:00:21]} 42. Kc3 {[%clk 0:00:10]}  a5 {[%clk 0:00:21]} 43. Kd4 {[%clk 0:00:11]}  Kd6 {[%clk 0:00:20]} 44. Ke4 {[%clk 0:00:09]}  Rg5 {[%clk 0:00:21]} 45. Kd4 {[%clk 0:00:07]}  b6 {[%clk 0:00:20]} 46. Ke4 {[%clk 0:00:08]}  Kc5 {[%clk 0:00:20]} 47. Kd3 {[%clk 0:00:05]}  Kb4 {[%clk 0:00:20]} 48. Kd2 {[%clk 0:00:05]}  Rc5 {[%clk 0:00:17]} 49. Kc1 {[%clk 0:00:05]}  Ka3 {[%clk 0:00:17]} 50. Kb1 {[%clk 0:00:05]}  a4 {[%clk 0:00:17]} 51. bxa4 {[%clk 0:00:04]}  Kxa4 {[%clk 0:00:18]} 52. Kb2 {[%clk 0:00:05]}  Kb4 {[%clk 0:00:18]} 53. c3+ {[%clk 0:00:06]}  Ka4 {[%clk 0:00:18]} 54. Kc2 {[%clk 0:00:04]}  Ka3 {[%clk 0:00:18]} 55. Kd3 {[%clk 0:00:02]}  Rg5 {[%clk 0:00:18]} 56. Kc2 {[%clk 0:00:02]}  Rg2+ {[%clk 0:00:17]} 57. Kd3 {[%clk 0:00:03]}  Rg3+ {[%clk 0:00:13]} 58. Kc2 {[%clk 0:00:03]}  Rg5 {[%clk 0:00:12]} 59. Kd3 {[%clk 0:00:04]}  Kb2 {[%clk 0:00:12]} 60. Rh2+ {[%clk 0:00:04]}  Kb3 {[%clk 0:00:13]} 61. Rh1 {[%clk 0:00:04]}  Ka2 {[%clk 0:00:10]} 62. Rh3 {[%clk 0:00:04]}  Ka3 {[%clk 0:00:08]} 63. Kc2 {[%clk 0:00:04]}  Rg4 {[%clk 0:00:06]} 64. Kd3 {[%clk 0:00:05]}  Kb3 {[%clk 0:00:06]} 65. Rh1 {[%clk 0:00:03]}  Rg3+ {[%clk 0:00:06]} 66. Kd4 {[%clk 0:00:04]}  c5+ {[%clk 0:00:06]} 67. Kd5 {[%clk 0:00:04]}  Rg5+ {[%clk 0:00:06]} 68. Kc6 {[%clk 0:00:04]}  Kxc4 {[%clk 0:00:06]} 69. Rh3 {[%clk 0:00:04]}  b5 {[%clk 0:00:06]} 70. Rh4+ {[%clk 0:00:02]}  Kxc3 {[%clk 0:00:07]} 71. Kxb5 {[%clk 0:00:03]}  c4+ {[%clk 0:00:07]} 72. Ka4 {[%clk 0:00:03]}  Kd3 {[%clk 0:00:06]} 73. Kb4 {[%clk 0:00:03]}  c3 {[%clk 0:00:03]} 74. Rh3+ {[%clk 0:00:04]}  Ke2 {[%clk 0:00:03]} 75. Kxc3 {[%clk 0:00:04]}  Kf2 {[%clk 0:00:03]} 76. Kd4 {[%clk 0:00:05]}  Kg2 {[%clk 0:00:04]} 77. Rh4 {[%clk 0:00:05]}  Kg3 {[%clk 0:00:04]} 78. Rh1 {[%clk 0:00:06]}  Kg2 {[%clk 0:00:05]} 79. Ke4 {[%clk 0:00:06]}  Kxh1 {[%clk 0:00:05]} 0-1


[Site "https://www.chess.com"]

[Event "Titled Tuesday Blitz June 21 Late 2022"]
[White "Hoffmann, Asa"]
[Black "Titichoca Daza, Daniel"]
[WhiteFideId "2001470"]
[BlackFideId "3309550"]
[WhiteElo "2117"]
[BlackElo "1912"]
[Result "0-1"]
[Round "03"]
[TimeControl "180+1"]
[Date "2022.06.22"]
[WhiteClock "0:01:20"]
[BlackClock "0:01:26"]

1. d4 {[%clk 0:02:54]}  d5 {[%clk 0:02:59]} 2. Bg5 {[%clk 0:02:53]}  Nd7 {[%clk 0:02:56]} 3. c4 {[%clk 0:02:52]}  c6 {[%clk 0:02:55]} 4. cxd5 {[%clk 0:02:52]}  cxd5 {[%clk 0:02:56]} 5. Nc3 {[%clk 0:02:52]}  Ngf6 {[%clk 0:02:57]} 6. e3 {[%clk 0:02:52]}  a6 {[%clk 0:02:56]} 7. Bd3 {[%clk 0:02:51]}  e6 {[%clk 0:02:56]} 8. f4 {[%clk 0:02:51]}  b5 {[%clk 0:02:53]} 9. Nf3 {[%clk 0:02:50]}  h6 {[%clk 0:02:52]} 10. Bh4 {[%clk 0:02:50]}  Bd6 {[%clk 0:02:47]} 11. Ne5 {[%clk 0:02:48]}  g5 {[%clk 0:02:47]} 12. fxg5 {[%clk 0:02:41]}  hxg5 {[%clk 0:02:42]} 13. Bg3 {[%clk 0:02:40]}  Bxe5 {[%clk 0:02:36]} 14. dxe5 {[%clk 0:02:34]}  Nh5 {[%clk 0:02:35]} 15. Qf3 {[%clk 0:02:18]}  Nxg3 {[%clk 0:02:33]} 16. Qxg3 {[%clk 0:02:16]}  Qc7 {[%clk 0:02:33]} 17. Qxg5 {[%clk 0:02:11]}  Qxe5 {[%clk 0:02:32]} 18. Qxe5 {[%clk 0:02:09]}  Nxe5 {[%clk 0:02:31]} 19. Be2 {[%clk 0:02:08]}  Bb7 {[%clk 0:02:27]} 20. O-O-O {[%clk 0:02:07]}  Rc8 {[%clk 0:02:26]} 21. Kb1 {[%clk 0:02:07]}  Ke7 {[%clk 0:02:21]} 22. h4 {[%clk 0:01:57]}  Bc6 {[%clk 0:02:14]} 23. Bf3 {[%clk 0:01:48]}  b4 {[%clk 0:02:01]} 24. Ne2 {[%clk 0:01:47]}  Nc4 {[%clk 0:02:01]} 25. Nd4 {[%clk 0:01:44]}  Nxe3 {[%clk 0:01:56]} 26. Rde1 {[%clk 0:01:44]}  Nc4 {[%clk 0:01:55]} 27. Nxc6+ {[%clk 0:01:44]}  Rxc6 {[%clk 0:01:55]} 28. Bxd5 {[%clk 0:01:44]}  Nd2+ {[%clk 0:01:54]} 29. Ka1 {[%clk 0:01:41]}  Rc5 {[%clk 0:01:55]} 30. Bf3 {[%clk 0:01:31]}  Rhc8 {[%clk 0:01:28]} 31. h5 {[%clk 0:01:26]}  b3 {[%clk 0:01:25]} 32. h6 {[%clk 0:01:22]}  Ra5 {[%clk 0:01:25]} 33. a3 {[%clk 0:01:20]}  Rc2 {[%clk 0:01:26]} 0-1


[Site "https://www.chess.com"]

[Event "Titled Tuesday Blitz June 21 Late 2022"]
[White "Janaszak, Dawid"]
[Black "Oro, Luis"]
[WhiteFideId "1119206"]
[BlackFideId "104094"]
[WhiteElo "2199"]
[BlackElo "2371"]
[Result "1-0"]
[Round "03"]
[TimeControl "180+1"]
[Date "2022.06.22"]
[WhiteClock "0:01:11"]
[BlackClock "0:00:53"]

1. e4 {[%clk 0:03:00]}  c5 {[%clk 0:02:57]} 2. Nc3 {[%clk 0:03:00]}  d6 {[%clk 0:02:55]} 3. f4 {[%clk 0:03:00]}  Nf6 {[%clk 0:02:53]} 4. Nf3 {[%clk 0:03:00]}  Nc6 {[%clk 0:02:54]} 5. g3 {[%clk 0:02:53]}  g6 {[%clk 0:02:53]} 6. Bg2 {[%clk 0:02:54]}  Bg7 {[%clk 0:02:53]} 7. O-O {[%clk 0:02:54]}  O-O {[%clk 0:02:54]} 8. d3 {[%clk 0:02:52]}  Nd7 {[%clk 0:02:38]} 9. h3 {[%clk 0:02:48]}  e6 {[%clk 0:02:34]} 10. f5 {[%clk 0:02:45]}  Nde5 {[%clk 0:02:31]} 11. Nxe5 {[%clk 0:02:34]}  Bxe5 {[%clk 0:02:25]} 12. g4 {[%clk 0:02:30]}  Qh4 {[%clk 0:02:20]} 13. Be3 {[%clk 0:02:28]}  Qg3 {[%clk 0:02:05]} 14. Rf3 {[%clk 0:02:28]}  Qh2+ {[%clk 0:02:05]} 15. Kf1 {[%clk 0:02:28]}  Nd4 {[%clk 0:02:06]} 16. Bg1 {[%clk 0:02:24]}  Nxf3 {[%clk 0:01:59]} 17. Bxh2 {[%clk 0:02:24]}  Nxh2+ {[%clk 0:01:59]} 18. Kg1 {[%clk 0:02:24]}  exf5 {[%clk 0:02:00]} 19. exf5 {[%clk 0:02:22]}  gxf5 {[%clk 0:01:58]} 20. g5 {[%clk 0:02:07]}  Be6 {[%clk 0:01:43]} 21. Qh5 {[%clk 0:02:00]}  f6 {[%clk 0:01:31]} 22. g6 {[%clk 0:01:58]}  hxg6 {[%clk 0:01:30]} 23. Qxg6+ {[%clk 0:01:59]}  Kh8 {[%clk 0:01:30]} 24. Nd5 {[%clk 0:01:51]}  Nf3+ {[%clk 0:01:18]} 25. Kh1 {[%clk 0:01:41]}  Nd4 {[%clk 0:01:16]} 26. Rg1 {[%clk 0:01:37]}  Ne2 {[%clk 0:01:09]} 27. Qh6+ {[%clk 0:01:34]}  Kg8 {[%clk 0:01:09]} 28. Qg6+ {[%clk 0:01:11]}  Kh8 {[%clk 0:01:08]} 29. Qh5+ {[%clk 0:01:12]}  Kg7 {[%clk 0:00:53]} 30. Qxe2 {[%clk 0:01:11]} 1-0


[Site "https://www.chess.com"]

[Event "Titled Tuesday Blitz June 21 Late 2022"]
[White "Jaracz, Pawel"]
[Black "Golubev, Mikhail"]
[WhiteFideId "1102222"]
[BlackFideId "14100983"]
[WhiteElo "2459"]
[BlackElo "2374"]
[Result "1-0"]
[Round "03"]
[TimeControl "180+1"]
[Date "2022.06.22"]
[WhiteClock "0:00:47"]
[BlackClock "0:00:14"]

1. e4 {[%clk 0:02:57]}  c5 {[%clk 0:02:58]} 2. Nf3 {[%clk 0:02:56]}  d6 {[%clk 0:02:58]} 3. Bb5+ {[%clk 0:02:56]}  Bd7 {[%clk 0:02:57]} 4. c4 {[%clk 0:02:56]}  Nc6 {[%clk 0:02:52]} 5. O-O {[%clk 0:02:55]}  Nf6 {[%clk 0:02:52]} 6. Nc3 {[%clk 0:02:54]}  g6 {[%clk 0:02:44]} 7. d4 {[%clk 0:02:50]}  cxd4 {[%clk 0:02:44]} 8. Nxd4 {[%clk 0:02:49]}  Bg7 {[%clk 0:02:43]} 9. Bxc6 {[%clk 0:02:42]}  bxc6 {[%clk 0:02:34]} 10. c5 {[%clk 0:02:33]}  O-O {[%clk 0:02:21]} 11. cxd6 {[%clk 0:02:12]}  exd6 {[%clk 0:02:22]} 12. Bf4 {[%clk 0:02:10]}  Re8 {[%clk 0:02:14]} 13. Re1 {[%clk 0:02:07]}  c5 {[%clk 0:02:10]} 14. Nb3 {[%clk 0:02:00]}  Bc6 {[%clk 0:01:59]} 15. Qd3 {[%clk 0:01:44]}  d5 {[%clk 0:01:47]} 16. exd5 {[%clk 0:01:41]}  Rxe1+ {[%clk 0:01:37]} 17. Rxe1 {[%clk 0:01:41]}  Nxd5 {[%clk 0:01:37]} 18. Be5 {[%clk 0:01:35]}  Bxe5 {[%clk 0:01:12]} 19. Rxe5 {[%clk 0:01:34]}  Nf4 {[%clk 0:01:02]} 20. Qxd8+ {[%clk 0:01:32]}  Rxd8 {[%clk 0:01:03]} 21. Rxc5 {[%clk 0:01:13]}  Re8 {[%clk 0:00:20]} 22. h4 {[%clk 0:00:48]}  Re1+ {[%clk 0:00:16]} 23. Kh2 {[%clk 0:00:48]}  Bxg2 {[%clk 0:00:14]} 24. Kg3 {[%clk 0:00:47]} 1-0


[Site "https://www.chess.com"]

[Event "Titled Tuesday Blitz June 21 Late 2022"]
[White "Jiganchine, Roman"]
[Black "Veiga, Jose Francisco R P Neves"]
[WhiteFideId "2603667"]
[BlackFideId "1930087"]
[WhiteElo "2219"]
[BlackElo "2326"]
[Result "0-1"]
[Round "03"]
[TimeControl "180+1"]
[Date "2022.06.22"]
[WhiteClock "0:00:05"]
[BlackClock "0:00:17"]

1. Nf3 {[%clk 0:02:58]}  g6 {[%clk 0:03:00]} 2. d4 {[%clk 0:02:55]}  Bg7 {[%clk 0:03:00]} 3. e4 {[%clk 0:02:53]}  c6 {[%clk 0:03:00]} 4. c3 {[%clk 0:02:39]}  d5 {[%clk 0:02:58]} 5. e5 {[%clk 0:02:39]}  f6 {[%clk 0:02:56]} 6. exf6 {[%clk 0:02:38]}  exf6 {[%clk 0:02:53]} 7. Bd3 {[%clk 0:02:35]}  Ne7 {[%clk 0:02:52]} 8. O-O {[%clk 0:02:32]}  O-O {[%clk 0:02:49]} 9. h3 {[%clk 0:02:32]}  Bf5 {[%clk 0:02:43]} 10. Re1 {[%clk 0:02:29]}  Nd7 {[%clk 0:02:36]} 11. Na3 {[%clk 0:02:28]}  Re8 {[%clk 0:02:32]} 12. Bf1 {[%clk 0:02:27]}  Nf8 {[%clk 0:02:29]} 13. Nc2 {[%clk 0:02:26]}  Bxc2 {[%clk 0:02:23]} 14. Qxc2 {[%clk 0:02:26]}  Nf5 {[%clk 0:02:24]} 15. Bf4 {[%clk 0:02:20]}  Ne6 {[%clk 0:02:22]} 16. Bh2 {[%clk 0:02:20]}  Bf8 {[%clk 0:02:12]} 17. a4 {[%clk 0:02:18]}  Bd6 {[%clk 0:02:11]} 18. a5 {[%clk 0:02:13]}  Bxh2+ {[%clk 0:02:07]} 19. Nxh2 {[%clk 0:02:14]}  a6 {[%clk 0:02:01]} 20. Ng4 {[%clk 0:02:07]}  Kg7 {[%clk 0:01:59]} 21. Ne3 {[%clk 0:02:06]}  Nd6 {[%clk 0:01:53]} 22. b4 {[%clk 0:01:52]}  Qd7 {[%clk 0:01:45]} 23. g3 {[%clk 0:01:46]}  Ng5 {[%clk 0:01:42]} 24. Bg2 {[%clk 0:01:24]}  Nxh3+ {[%clk 0:01:32]} 25. Kh2 {[%clk 0:01:17]}  Ng5 {[%clk 0:01:31]} 26. Rad1 {[%clk 0:00:59]}  Re7 {[%clk 0:01:28]} 27. c4 {[%clk 0:00:48]}  dxc4 {[%clk 0:01:24]} 28. Nxc4 {[%clk 0:00:47]}  Nxc4 {[%clk 0:01:23]} 29. Qxc4 {[%clk 0:00:44]}  Rxe1 {[%clk 0:00:21]} 30. Rxe1 {[%clk 0:00:43]}  Re8 {[%clk 0:00:21]} 31. Rd1 {[%clk 0:00:36]}  Ne4 {[%clk 0:00:19]} 32. Qc2 {[%clk 0:00:25]}  Nd6 {[%clk 0:00:19]} 33. d5 {[%clk 0:00:25]}  cxd5 {[%clk 0:00:13]} 34. Rxd5 {[%clk 0:00:24]}  Qe7 {[%clk 0:00:13]} 35. Qd2 {[%clk 0:00:23]}  Rd8 {[%clk 0:00:13]} 36. Qc3 {[%clk 0:00:20]}  Nf7 {[%clk 0:00:12]} 37. Rc5 {[%clk 0:00:20]}  Rd7 {[%clk 0:00:12]} 38. Rc8 {[%clk 0:00:19]}  Ne5 {[%clk 0:00:12]} 39. Qc5 {[%clk 0:00:16]}  Qxc5 {[%clk 0:00:11]} 40. bxc5 {[%clk 0:00:16]}  Ng4+ {[%clk 0:00:12]} 41. Kg1 {[%clk 0:00:16]}  Ne5 {[%clk 0:00:12]} 42. c6 {[%clk 0:00:15]}  bxc6 {[%clk 0:00:12]} 43. Bxc6 {[%clk 0:00:15]}  Rd1+ {[%clk 0:00:12]} 44. Kg2 {[%clk 0:00:15]}  Ra1 {[%clk 0:00:13]} 45. Bb7 {[%clk 0:00:11]}  Rxa5 {[%clk 0:00:13]} 46. Ra8 {[%clk 0:00:11]}  Ra2 {[%clk 0:00:12]} 47. Rxa6 {[%clk 0:00:09]}  Rb2 {[%clk 0:00:13]} 48. Be4 {[%clk 0:00:08]}  Ng4 {[%clk 0:00:12]} 49. Ra7+ {[%clk 0:00:09]}  Kh6 {[%clk 0:00:12]} 50. Bf3 {[%clk 0:00:07]}  Rxf2+ {[%clk 0:00:12]} 51. Kh3 {[%clk 0:00:07]}  Rxf3 {[%clk 0:00:11]} 52. Kxg4 {[%clk 0:00:08]}  Rf1 {[%clk 0:00:11]} 53. Kh3 {[%clk 0:00:08]}  f5 {[%clk 0:00:11]} 54. Kg2 {[%clk 0:00:08]}  Re1 {[%clk 0:00:11]} 55. Ra4 {[%clk 0:00:08]}  Kg5 {[%clk 0:00:11]} 56. Ra7 {[%clk 0:00:08]}  h5 {[%clk 0:00:11]} 57. Ra4 {[%clk 0:00:08]}  Re2+ {[%clk 0:00:11]} 58. Kf3 {[%clk 0:00:08]}  Rb2 {[%clk 0:00:11]} 59. Rc4 {[%clk 0:00:08]}  Rb3+ {[%clk 0:00:12]} 60. Kg2 {[%clk 0:00:08]}  Re3 {[%clk 0:00:11]} 61. Rb4 {[%clk 0:00:06]}  Re4 {[%clk 0:00:12]} 62. Rb6 {[%clk 0:00:06]}  h4 {[%clk 0:00:12]} 63. gxh4+ {[%clk 0:00:05]}  Rxh4 {[%clk 0:00:13]} 64. Kg3 {[%clk 0:00:06]}  Rd4 {[%clk 0:00:13]} 65. Rc6 {[%clk 0:00:05]}  Rd3+ {[%clk 0:00:14]} 66. Kf2 {[%clk 0:00:05]}  Kh5 {[%clk 0:00:14]} 67. Rb6 {[%clk 0:00:05]}  g5 {[%clk 0:00:14]} 68. Rb8 {[%clk 0:00:04]}  Kg4 {[%clk 0:00:14]} 69. Rg8 {[%clk 0:00:04]}  f4 {[%clk 0:00:15]} 70. Ke2 {[%clk 0:00:04]}  Rb3 {[%clk 0:00:15]} 71. Rf8 {[%clk 0:00:04]}  Kh4 {[%clk 0:00:15]} 72. Rh8+ {[%clk 0:00:04]}  Kg3 {[%clk 0:00:15]} 73. Rg8 {[%clk 0:00:04]}  g4 {[%clk 0:00:15]} 74. Rg7 {[%clk 0:00:04]}  Rb2+ {[%clk 0:00:15]} 75. Kd1 {[%clk 0:00:04]}  Kf3 {[%clk 0:00:14]} 76. Rg8 {[%clk 0:00:04]}  g3 {[%clk 0:00:15]} 77. Rg7 {[%clk 0:00:04]}  Rf2 {[%clk 0:00:15]} 78. Kc1 {[%clk 0:00:04]}  g2 {[%clk 0:00:15]} 79. Rg6 {[%clk 0:00:04]}  Rf1+ {[%clk 0:00:16]} 80. Kd2 {[%clk 0:00:05]}  g1=Q {[%clk 0:00:17]} 0-1


[Site "https://www.chess.com"]